Entity,Pay date,Expense Type,Expense Area,Supplier,Transaction Number,Amount,Description
NS&I,25/10/2018,Unitary fee - Outsource partner,Commercial Contracts,Atos IT Services UK Ltd,4012567,"4,738,066.77",Unitary Service Charge - October 2018
NS&I,03/10/2018,Demand-linked costs - Outsource partner,Commercial Contracts,Atos IT Services UK Ltd,4012423,"1,758,687.00",Demand Link Service Charge - August 2018
NS&I,24/10/2018,Unitary fee - Outsource partner,B2B Government Payment Services,Atos IT Services UK Ltd,4012512,"1,238,015.63",Tax-Free Childcare Service Charges - August 2018
NS&I,17/10/2018,Unitary fee - Outsource partner,B2B Government Payment Services,Atos IT Services UK Ltd,4012586,"685,708.64",Help to Save Service Charges - August 2018
NS&I,24/10/2018,Unitary fee - Outsource partner,B2B Government Payment Services,Atos IT Services UK Ltd,4012533,"665,031.08",Tax-Free Childcare Project Charges August 2018
NS&I,10/10/2018,Building services charge,Workplace & Culture,Atos IT Services UK Ltd,4012467,"621,084.00",Regional Office Refit
NS&I,10/10/2018,Unitary fee - Outsource partner,B2B Government Payment Services,Atos IT Services UK Ltd,4012529,"329,528.62",Help To Save Project Charges - August 2018
NS&I,10/10/2018,Project costs - Outsource partner,Programme Delivery,Atos IT Services UK Ltd,4012520,"254,333.00",Re-enhancement of EOI systems - Nov 2017 - Aug 2018
NS&I,10/10/2018,Unitary fee - Outsource partner,B2B Government Payment Services,Atos IT Services UK Ltd,4012511,"240,332.99",30 Hours Free Childcare Service Charges August 2018
NS&I,24/10/2018,Project costs - Outsource partner,Programme Delivery,Atos IT Services UK Ltd,4012647,"235,306.00",Financial Adviser Website Development Costs August 2018
NS&I,03/10/2018,Rentals under operating leases,Workplace & Culture,Durham County Council - City of Durham,4012469,"203,507.10",Quarterly Rent for Regional Office Q4 2018
NS&I,10/10/2018,Unitary fee - Outsource partner,B2B Government Payment Services,Atos IT Services UK Ltd,4012530,"202,077.39",30 Hours Free Childcare Service Charges August 2018
NS&I,24/10/2018,Unitary fee - Outsource partner,B2B Government Payment Services,Atos IT Services UK Ltd,4012531,"202,077.39",Tax-Free Childcare Service Charges August 2018
NS&I,10/10/2018,Project costs - Outsource partner,Programme Delivery,Atos IT Services UK Ltd,4012526,"171,038.00",Open Banking  - August 2018
NS&I,10/10/2018,Unitary fee - Outsource partner,B2B Government Payment Services,Atos IT Services UK Ltd,4012532,"204,291.56",Home Office Payment Processing Service Charges - August 2018
NS&I,10/10/2018,Project costs - Outsource partner,Programme Delivery,Atos IT Services UK Ltd,4012522,"140,429.00",Product Enhancement Cost - August 2018
NS&I,25/10/2018,Unitary fee - Outsource partner,B2B Government Payment Services,Atos IT Services UK Ltd,4012534,"130,891.15",Court Funds Office Service Charges - September 2018
NS&I,03/10/2018,Project costs - Outsource partner,Programme Delivery,Atos IT Services UK Ltd,4012518,"124,094.00",Improving authentication process  August 2018
NS&I,10/10/2018,Maintenance and running costs - Outsource partner,IS & Information Assurance,Atos IT Services UK Ltd,4012468,"121,389.00",Information Systems Testing - March - August 2018
NS&I,03/10/2018,Advertising and production,Marketing Communications,Carat (Registered as Dentsu Aegis UK Ltd),4012454,"110,191.56",Cost of Marketing Campaigns
NS&I,10/10/2018,Project costs - Outsource partner,Programme Delivery,Atos IT Services UK Ltd,4012517,"102,000.00",Transformation programme - Management cost - August 2018
NS&I,03/10/2018,Project costs - Outsource partner,Programme Delivery,Atos IT Services UK Ltd,4012409,"92,864.00","Communication of privacy notice to customers, re GDPR"
NS&I,03/10/2018,Business intelligence and analysis,Market Intelligence & Research,CACI Ltd,4012448,"57,720.00",Annual Subscription for Market Data 2018/2019
NS&I,03/10/2018,Project costs - Outsource partner,Programme Delivery,Atos IT Services UK Ltd,4012444,"56,159.00",Delivering IT orchestration improvements - August 2018
NS&I,03/10/2018,Project costs - Outsource partner,Programme Delivery,Atos IT Services UK Ltd,4012451,"54,355.00",Delivering product changes - August 2018
NS&I,10/10/2018,Maintenance and running costs - Outsource partner,Product Management,Atos IT Services UK Ltd,4012498,"53,445.00",Communication on Rate Change
NS&I,29/10/2018,Product account bank charges,Finance,HMRC (Government Banking Service),4012654,"50,000.00",HMRC GBS Management Fees Q2 2018 / 2019
NS&I,03/10/2018,Project costs - Outsource partner,Retail Experience,Atos IT Services UK Ltd,4012413,"46,228.00",Website Improvement Costs - August 2018
NS&I,24/10/2018,Unitary fee - Outsource partner,B2B Government Payment Services,Atos IT Services UK Ltd,4012516,"36,197.57",Tax-Free Childcare Service Charges August 2018
NS&I,10/10/2018,Other travel and travel services,Finance,Redfern Travel Limited,4012546,"34,809.88",Travel Data for September 2018
NS&I,03/10/2018,Product account bank charges,Finance,RBSG NS&I Charges A/c,4012523,"33,766.90",RBS Quarterly Bank Charges June-August 2018
NS&I,03/10/2018,Purchasing card charges,Finance,NatWest 471505930101077,4012524,"32,862.02",Credit Card purchases - September 2018
NS&I,03/10/2018,Training and development costs,Learning & Development,CSL-Korn Ferry Hay Group,4012497,"32,210.88",Korn Ferry (Civil Service Learning) leadership assessment and development
NS&I,17/10/2018,Professional services - Other,IS & Information Assurance,MWR InfoSecurity Ltd,4012574,"25,272.00",Staff training � Security Awareness
NS&I,10/10/2018,Unitary fee - Outsource partner,Commercial Contracts,Atos IT Services UK Ltd,4012513,"-71,935.40",Unitary Service Adjustment - Credit Received
